{"text_format":"3","workbook":"xlsx","n_sheets":13,"sheets":["Лист1","Чел. бег","Бег на 30м","Бег на 60 м","Бег на 100м","Бег на 1 км","Бег на 1,5 км","Бег на 2 км","Бег на 3 км","Смешанное перед","Прыжок с места","Прыжок в длину с разбега","Лист3"],"not_rendered":{"defined_names":14},"read":"whole","date_system":"1900"}

{"sheet":"Лист1","index":0,"n_rows":24,"n_cols":10,"rows_kept":24,"merged":[[3,0,5,0],[3,1,5,1],[3,2,5,2],[3,3,5,3],[3,4,3,6],[4,7,5,7],[4,8,5,8]]}
[null,null,"Информация "]
[null,null,"      о сдаче нормативов Всероссийского физкультурно-спортивного комплекса Готов к труду и обороне (ГТО)"]
[null,null,"      обучающимися общеобразовательных организаций в _________________________муниципальном районе"]
["Количество общеобразовательных организаций в районе","Количество общеобразовательных организаций в районе, приступивших к сдаче нормативов ","Количество обучающихся основной группы по физической культуре, допущенных к сдаче нормативов ","Количество обучающихся основной группы по физической культуре,  приступивших к сдаче нормативов","Количество обучающихся основной группы по физической культуре,  справившихся с выполнением нормативов в полном объеме",null,null,"Количество обучающихся основной группы по физической культуре,  справившихся с выполнением нормативов  не в полном объеме","Количество обучающихся основной группы по физической культуре,  не справившихся с выполнением нормативов   ","Количество обучающихся основной группы по физической культуре,  не справившихся с выполнением нормативов   "]
[{"$nulls":4},"Бронзовый","Серебряный","Золотой "]
[{"$nulls":4},"Бронзовый","Серебряный","Золотой "]
["Большекайбицкая сош",1,213,213,46,30,17,null,120,120]
["Чутеевская сош",1,124,124,18,25,12,67,2,2]
["Старотябердинская сош",1,95,95,15,13,5,62,0,0]
["Молькеевская ош",1,63,63,10,15,5,33,8,0]
["Хозесановская сош",1,76,76,35,29,12]
["Большеподберезинская сош",null,104,104,27,25,27,15,10,10]
["Надеждинская сош",null,20,20,8,7,5]
["Ульянковская ош",1,22,22,8,3,null,11,null,0]
["Старочечкабская ош",null,25,25,8,12,5]
["Берлибашская ош",1,40,40,15,15,0,10,0,0]
["Кушманская ош",null,62,62,39,15,5,3]
["Муралинская ош",1,30,30,10,12,5,3]
["Федоровская сош",1,145,145,47,44,24,30,null,0]
["Бурундуковская ош",null,35,35,8,13,14,0,0]
["Маломеминская ош",null,53,53,19,8,9,9,8,8]
["Большерусаковская сош",null,51,51,22,16,5,0,8,8]
["Кулангинская ош",1,55,55,20,15,5,15,null,0]
[null,null,{"$f":"SUM(C7:C23)","v":1213},1213,355,297,155,258,156,148]

{"sheet":"Чел. бег","index":1,"n_rows":23,"n_cols":7,"rows_kept":23,"merged":[[2,2,2,4],[3,0,4,0],[3,1,4,1],[3,5,4,5],[3,6,4,6]]}
[{"$nulls":3},"         Информация о сдаче нормативов осенней (зимней, весенней) сессии в _________муниципальном районе"]
[{"$nulls":5},"Челночный бег"]
["Наименование норматива ","Количество обучающихся основной группы по физической культуре,  приступивших к сдаче норматива","Количество обучающихся основной группы по физической культуре,  справившихся с выполнением нормативов в полном объеме",null,null,"Количество обучающихся основной группы по физической культуре,  справившихся с выполнением нормативов  частично","Количество обучающихся основной группы по физической культуре,  не справившихся с выполнением нормативов  "]
[null,null,"Бронзовый","Серебряный","Золотой "]
[null,null,"уровень","уровень","уровень"]
["Большекайбицкая сош",48,11,10,2,null,25]
["Чутеевская сош",9,1,5,2,null,1]
["Старотябердинская сош",19,5,8,5,null,1]
["Молькеевская ош",9,0,3,4,null,2]
["Хозесановская сош",15,2,1,1,null,11]
["Большеподберезинская сош",16,7,3,2,0,4]
["Надеждинская сош",20,5,8,7]
["Ульянковская ош",7,3,3,null,0,1]
["Старочечкабская ош",9,4,2,2,null,1]
["Берлибашская ош",8,null,5,3,0,0]
["Кушманская ош",14,8,6,0]
["Муралинская ош",3,1,1,1,0]
["Федоровская сош",7,3,1,1,null,2]
["Бурундуковская ош",9,2,4,3]
["Маломеминская ош",8,1,null,2,null,5]
["Большерусаковская сош",51,25,17,3,null,6]
["Кулангинская ош",16,5,5,5,0,1]
[null,{"$f":"SUM(B6:B22)","v":268},83,82,43,0,60]

{"sheet":"Бег на 30м","index":2,"n_rows":23,"n_cols":7,"rows_kept":23,"merged":[[2,2,2,4],[3,0,4,0],[3,1,4,1],[3,5,4,5],[3,6,4,6]]}
[{"$nulls":3},"         Информация о сдаче нормативов осенней (зимней, весенней) сессии в _________муниципальном районе"]
[{"$nulls":5},"Бег на 30 м"]
["Наименование норматива ","Количество обучающихся основной группы по физической культуре,  приступивших к сдаче норматива","Количество обучающихся основной группы по физической культуре,  справившихся с выполнением нормативов в полном объеме",null,null,"Количество обучающихся основной группы по физической культуре,  справившихся с выполнением нормативов  частично","Количество обучающихся основной группы по физической культуре,  не справившихся с выполнением нормативов  частично"]
[null,null,"Бронзовый","Серебряный","Золотой "]
[null,null,"уровень","уровень","уровень"]
["Большекайбицкая сош",48,{"$nulls":4},48]
["Чутеевская сош",9,1,4,3,null,1]
["Старотябердинская сош",19,5,9,4,null,1]
["Молькеевская ош",9,0,7,0,null,2]
["Хозесановская сош",15,3,3,1,null,8]
["Большеподберезинская сош",16,8,4,2,0,2]
["Надеждинская сош",20,6,9,5]
["Ульянковская ош",7,3,1,1,null,2]
["Старочечкабская ош",9,3,4,1,null,1]
["Берлибашская ош",8,null,5,3,0,0]
["Кушманская ош",14,5,8,1]
["Муралинская ош",3,1,1,1,0]
["Федоровская сош",7,2,2,1,null,2]
["Бурундуковская ош",9,2,4,3]
["Маломеминская ош",8,2,3,3]
["Большерусаковская сош",51,18,19,10,null,4]
["Кулангинская ош",16,5,6,4,null,1]
[null,{"$f":"SUM(B6:B22)","v":268},64,89,43,0,72]

{"sheet":"Бег на 60 м","index":3,"n_rows":23,"n_cols":7,"rows_kept":23,"merged":[[2,2,2,4],[3,0,4,0],[3,1,4,1],[3,5,4,5],[3,6,4,6]]}
[{"$nulls":3},"         Информация о сдаче нормативов осенней (зимней, весенней) сессии в _________муниципальном районе"]
[{"$nulls":6},"Бег на 60 м"]
["Наименование норматива ","Количество обучающихся основной группы по физической культуре,  приступивших к сдаче норматива","Количество обучающихся основной группы по физической культуре,  справившихся с выполнением нормативов в полном объеме",null,null,"Количество обучающихся основной группы по физической культуре,  справившихся с выполнением нормативов  частично","Количество обучающихся основной группы по физической культуре,  не справившихся с выполнением нормативов  частично"]
[null,null,"Бронзовый","Серебряный","Золотой "]
[null,null,"уровень","уровень","уровень"]
["Большекайбицкая сош",111,25,20,12,null,54]
["Чутеевская сош",97,12,40,45]
["Старотябердинская сош",46,18,12,12,null,4]
["Молькеевская ош",54,12,25,6,null,11]
["Хозесановская сош",35,7,3,2,null,23]
["Большеподберезинская сош",49,16,9,10,0,14]
["Надеждинская сош",20,6,9,5]
["Ульянковская ош",15,6,1,0,null,8]
["Старочечкабская ош",52,17,23,6,null,6]
["Берлибашская ош",32,9,11,7,null,5]
["Кушманская ош",48,28,15,5]
["Муралинская ош",23,7,3,5,0,8]
["Федоровская сош",88,29,15,11,null,33]
["Бурундуковская ош",24,5,6,13]
["Маломеминская ош",45,17,9,7,null,12]
["Большерусаковская сош",51,18,20,9,null,4]
["Кулангинская ош",39,10,15,9,null,5]
[null,{"$f":"SUM(B6:B22)","v":829},242,236,164,0,187]

{"sheet":"Бег на 100м","index":4,"n_rows":23,"n_cols":7,"rows_kept":23,"merged":[[2,2,2,4],[3,0,4,0],[3,1,4,1],[3,5,4,5],[3,6,4,6]]}
[{"$nulls":3},"         Информация о сдаче нормативов осенней (зимней, весенней) сессии в _________муниципальном районе"]
[{"$nulls":6},"Бег на 100 м"]
["Наименование норматива ","Количество обучающихся основной группы по физической культуре,  приступивших к сдаче норматива","Количество обучающихся основной группы по физической культуре,  справившихся с выполнением нормативов в полном объеме",null,null,"Количество обучающихся основной группы по физической культуре,  справившихся с выполнением нормативов  частично","Количество обучающихся основной группы по физической культуре,  не справившихся с выполнением нормативов  частично"]
[null,null,"Бронзовый","Серебряный","Золотой "]
[null,null,"уровень","уровень","уровень"]
["Большекайбицкая сош",33,2,12,1,null,18]
["Чутеевская сош",18,5,5,6,null,2]
["Старотябердинская сош",30,11,9,8,null,2]
["Молькеевская ош",0,0,0,0,0,0]
["Хозесановская сош",12,4,3,1,null,4]
["Большеподберезинская сош",21,7,5,6,0,3]
["Надеждинская сош",13,3,5,5]
["Ульянковская ош",0,0,0,0,0,0]
["Старочечкабская ош"]
["Берлибашская ош"]
["Кушманская ош"]
["Муралинская ош"]
["Федоровская сош",45,17,8,9,null,11]
["Бурундуковская ош"]
["Маломеминская ош"]
["Большерусаковская сош",39,13,20,4,null,2]
["Кулангинская ош"]
[null,{"$f":"SUM(B6:B21)","v":211},62,67,40,0,42]

{"sheet":"Бег на 1 км","index":5,"n_rows":23,"n_cols":7,"rows_kept":23,"merged":[[2,2,2,4],[3,0,4,0],[3,1,4,1],[3,5,4,5],[3,6,4,6]]}
[{"$nulls":3},"         Информация о сдаче нормативов осенней (зимней, весенней) сессии в _________муниципальном районе"]
[{"$nulls":6},"Бег на 1 км"]
["Наименование норматива ","Количество обучающихся основной группы по физической культуре,  приступивших к сдаче норматива","Количество обучающихся основной группы по физической культуре,  справившихся с выполнением нормативов в полном объеме",null,null,"Количество обучающихся основной группы по физической культуре,  справившихся с выполнением нормативов  частично","Количество обучающихся основной группы по физической культуре,  не справившихся с выполнением нормативов  частично"]
[null,null,"Бронзовый","Серебряный","Золотой "]
[null,null,"уровень","уровень","уровень"]
["Большекайбицкая сош",37,5,5,25,null,2]
["Чутеевская сош",19,9,4,6]
["Старотябердинская сош",10,3,3,4]
["Молькеевская ош",9,1,2,5,null,1]
["Хозесановская сош",10,1,1,1,null,7]
["Большеподберезинская сош",18,9,5,3,0,1]
["Надеждинская сош",20,2,7,11]
["Ульянковская ош",14,8,3,null,null,3]
["Старочечкабская ош",16,9,3,2,null,2]
["Берлибашская ош",8,5,3,null,0,0]
["Кушманская ош",14,12,1,1]
["Муралинская ош",7,1,1,3,0,2]
["Федоровская сош",17,4,2,5,null,6]
["Бурундуковская ош",8,null,null,8]
["Маломеминская ош",11,4,null,4,null,3]
["Большерусаковская сош",51,16,20,10,null,5]
["Кулангинская ош",15,7,5,2,null,1]
[null,{"$f":"SUM(B6:B22)","v":284},96,65,90,0,33]

{"sheet":"Бег на 1,5 км","index":6,"n_rows":23,"n_cols":7,"rows_kept":23,"merged":[[2,2,2,4],[3,0,4,0],[3,1,4,1],[3,5,4,5],[3,6,4,6]]}
[{"$nulls":3},"         Информация о сдаче нормативов осенней (зимней, весенней) сессии в _________муниципальном районе"]
[{"$nulls":6},"Бег на 1,5 км"]
["Наименование норматива ","Количество обучающихся основной группы по физической культуре,  приступивших к сдаче норматива","Количество обучающихся основной группы по физической культуре,  справившихся с выполнением нормативов в полном объеме",null,null,"Количество обучающихся основной группы по физической культуре,  справившихся с выполнением нормативов  частично","Количество обучающихся основной группы по физической культуре,  не справившихся с выполнением нормативов  частично"]
[null,null,"Бронзовый","Серебряный","Золотой "]
[null,null,"уровень","уровень","уровень"]
["Большекайбицкая сош",46,31,6,3,null,6]
["Чутеевская сош",27,11,7,8,null,1]
["Старотябердинская сош",13,2,5,6]
["Молькеевская ош",20,8,7,5]
["Хозесановская сош",11,1,1,1,null,8]
["Большеподберезинская сош",16,7,5,3,0,1]
["Надеждинская сош",13,3,5,5]
["Ульянковская ош",5,4,1]
["Старочечкабская ош",11,4,2,2,null,3]
["Берлибашская ош",7,2,2,null,null,3]
["Кушманская ош",18,8,8,1,null,1]
["Муралинская ош",6,1,2,2,0,1]
["Федоровская сош",23,5,4,6,null,8]
["Бурундуковская ош",8,2,2,4]
["Маломеминская ош",11,3,1,5,null,2]
["Большерусаковская сош",51,23,12,4,0,12]
["Кулангинская ош",10,5,3,2,null,0]
[null,{"$f":"SUM(B6:B22)","v":296},120,73,57,0,46]

{"sheet":"Бег на 2 км","index":7,"n_rows":23,"n_cols":7,"rows_kept":23,"merged":[[2,2,2,4],[3,0,4,0],[3,1,4,1],[3,5,4,5],[3,6,4,6]]}
[{"$nulls":3},"         Информация о сдаче нормативов осенней (зимней, весенней) сессии в _________муниципальном районе"]
[{"$nulls":6},"Бег на 2 км"]
["Наименование норматива ","Количество обучающихся основной группы по физической культуре,  приступивших к сдаче норматива","Количество обучающихся основной группы по физической культуре,  справившихся с выполнением нормативов в полном объеме",null,null,"Количество обучающихся основной группы по физической культуре,  справившихся с выполнением нормативов  частично","Количество обучающихся основной группы по физической культуре,  не справившихся с выполнением нормативов  частично"]
[null,null,"Бронзовый","Серебряный","Золотой "]
[null,null,"уровень","уровень","уровень"]
["Большекайбицкая сош",33,18,3,2,null,10]
["Чутеевская сош",96,30,27,30,null,9]
["Старотябердинская сош",66,35,17,14]
["Молькеевская ош",22,5,10,6,null,1]
["Хозесановская сош",30,3,2,1,null,24]
["Большеподберезинская сош",69,25,20,20,0,4]
["Надеждинская сош",13,3,5,5]
["Ульянковская ош",8,4,3,null,null,1]
["Старочечкабская ош",20,11,7,1,null,1]
["Берлибашская ош"]
["Кушманская ош",13,6,5,1,null,1]
["Муралинская ош",10,3,2,2,0,3]
["Федоровская сош",48,14,9,12,null,13]
["Бурундуковская ош",8,1,2,5]
["Маломеминская ош",23,7,3,6,null,7]
["Большерусаковская сош",51,23,12,4,0,12]
["Кулангинская ош",14,4,4,5,null,1]
[null,{"$f":"SUM(B6:B22)","v":524},192,131,114,0,87]

{"sheet":"Бег на 3 км","index":8,"n_rows":23,"n_cols":7,"rows_kept":23,"merged":[[2,2,2,4],[3,0,4,0],[3,1,4,1],[3,5,4,5],[3,6,4,6]]}
[{"$nulls":3},"         Информация о сдаче нормативов осенней (зимней, весенней) сессии в _________муниципальном районе"]
[{"$nulls":6},"Бег на 3 км"]
["Наименование норматива ","Количество обучающихся основной группы по физической культуре,  приступивших к сдаче норматива","Количество обучающихся основной группы по физической культуре,  справившихся с выполнением нормативов в полном объеме",null,null,"Количество обучающихся основной группы по физической культуре,  справившихся с выполнением нормативов  частично","Количество обучающихся основной группы по физической культуре,  не справившихся с выполнением нормативов  частично"]
[null,null,"Бронзовый","Серебряный","Золотой "]
[null,null,"уровень","уровень","уровень"]
["Большекайбицкая сош"]
["Чутеевская сош",18,5,4,5,null,4]
["Старотябердинская сош",30,13,11,6]
["Молькеевская ош"]
["Хозесановская сош",30,6,2,1,null,21]
["Большеподберезинская сош",10,5,3,1,0,1]
["Надеждинская сош"]
["Ульянковская ош",0,0,0,0,0,0]
["Старочечкабская ош"]
["Берлибашская ош",17,null,13,null,null,4]
["Кушманская ош"]
["Муралинская ош"]
["Федоровская сош",45,12,5,9,null,19]
["Бурундуковская ош"]
["Маломеминская ош"]
["Большерусаковская сош",39,20,12,4,0,3]
["Кулангинская ош"]
[null,{"$f":"SUM(B7:B21)","v":189},61,50,26,0,52]

{"sheet":"Смешанное перед","index":9,"n_rows":23,"n_cols":7,"rows_kept":23,"merged":[[2,2,2,4],[3,0,4,0],[3,1,4,1],[3,5,4,5],[3,6,4,6]]}
[{"$nulls":3},"         Информация о сдаче нормативов осенней (зимней, весенней) сессии в _________муниципальном районе"]
[{"$nulls":6},"Смешанное передвижение"]
["Наименование норматива ","Количество обучающихся основной группы по физической культуре,  приступивших к сдаче норматива","Количество обучающихся основной группы по физической культуре,  справившихся с выполнением нормативов в полном объеме",null,null,"Количество обучающихся основной группы по физической культуре,  справившихся с выполнением нормативов  частично","Количество обучающихся основной группы по физической культуре,  не справившихся с выполнением нормативов  частично"]
[null,null,"Бронзовый","Серебряный","Золотой "]
[null,null,"уровень","уровень","уровень"]
["Большекайбицкая сош"]
["Чутеевская сош",9,null,2,7]
["Старотябердинская сош",19,null,1,18]
["Молькеевская ош",9,1,4,4]
["Хозесановская сош",15,3,6,5,null,1]
["Большеподберезинская сош",15,6,5,2,null,2]
["Надеждинская сош"]
["Ульянковская ош",7,3,3,1]
["Старочечкабская ош",10,3,3,1,null,3]
["Берлибашская ош",8,2,6]
["Кушманская ош",14,12,1,0,null,1]
["Муралинская ош",5,2,2,1,0]
["Федоровская сош",12,2,5,4,null,1]
["Бурундуковская ош",9,3,3,3]
["Маломеминская ош",8,null,null,8]
["Большерусаковская сош"]
["Кулангинская ош",16,5,9,1,null,1]
[null,{"$f":"SUM(B7:B22)","v":156},42,50,55,0,9]

{"sheet":"Прыжок с места","index":10,"n_rows":23,"n_cols":7,"rows_kept":23,"merged":[[2,2,2,4],[3,0,4,0],[3,1,4,1],[3,5,4,5],[3,6,4,6]]}
[{"$nulls":3},"         Информация о сдаче нормативов осенней (зимней, весенней) сессии в _________муниципальном районе"]
[{"$nulls":6},"Прыжок в длину с места"]
["Наименование норматива ","Количество обучающихся основной группы по физической культуре,  приступивших к сдаче норматива","Количество обучающихся основной группы по физической культуре,  справившихся с выполнением нормативов в полном объеме",null,null,"Количество обучающихся основной группы по физической культуре,  справившихся с выполнением нормативов  частично","Количество обучающихся основной группы по физической культуре,  не справившихся с выполнением нормативов  частично"]
[null,null,"Бронзовый","Серебряный","Золотой "]
[null,null,"уровень","уровень","уровень"]
["Большекайбицкая сош",165,25,85,30,null,25]
["Чутеевская сош",124,25,30,67,0,2]
["Старотябердинская сош",95,12,27,30,null,26]
["Молькеевская ош",63,5,30,26,null,2]
["Хозесановская сош",51,5,7,1,null,38]
["Большеподберезинская сош",104,40,35,23,0,6]
["Надеждинская сош",20,4,11,5]
["Ульянковская ош",22,9,5,3,null,5]
["Старочечкабская ош",52,21,18,7,null,6]
["Берлибашская ош",40,12,15,7,null,6]
["Кушманская ош",48,29,18,1]
["Муралинская ош",12,3,3,2,0,4]
["Федоровская сош",145,24,46,64,null,11]
["Бурундуковская ош",24,4,8,12]
["Маломеминская ош",53,15,12,9,null,17]
["Большерусаковская сош",51,21,20,6,null,4]
["Кулангинская ош",55,15,25,13,null,2]
[null,{"$f":"SUM(B6:B22)","v":1124},269,395,306,0,154]

{"sheet":"Прыжок в длину с разбега","index":11,"n_rows":23,"n_cols":7,"rows_kept":23,"merged":[[2,2,2,4],[3,0,4,0],[3,1,4,1],[3,5,4,5],[3,6,4,6]]}
[{"$nulls":3},"         Информация о сдаче нормативов осенней (зимней, весенней) сессии в _________муниципальном районе"]
[{"$nulls":6},"Прыжок в длину с разбега"]
["Наименование норматива ","Количество обучающихся основной группы по физической культуре,  приступивших к сдаче норматива","Количество обучающихся основной группы по физической культуре,  справившихся с выполнением нормативов в полном объеме",null,null,"Количество обучающихся основной группы по физической культуре,  справившихся с выполнением нормативов  частично","Количество обучающихся основной группы по физической культуре,  не справившихся с выполнением нормативов  частично"]
[null,null,"Бронзовый","Серебряный","Золотой "]
[null,null,"уровень","уровень","уровень"]
["Большекайбицкая сош"]
["Чутеевская сош",115,20,30,35,0,30]
["Старотябердинская сош",76,8,14,7,null,47]
["Молькеевская ош",54,11,20,9,null,14]
["Хозесановская сош",51,4,6,2,null,39]
["Большеподберезинская сош",88,34,26,20,null,8]
["Надеждинская сош"]
["Ульянковская ош",22,10,6,0,null,6]
["Старочечкабская ош",52,19,19,5,null,9]
["Берлибашская ош"]
["Кушманская ош",48,27,17,3,null,1]
["Муралинская ош",16,4,2,2,0,8]
["Федоровская сош",133,54,43,25,null,11]
["Бурундуковская ош",24,4,8,12]
["Маломеминская ош",45,17,9,7,null,12]
["Большерусаковская сош",51,24,19,8]
["Кулангинская ош",39,8,15,7,null,9]
[null,{"$f":"SUM(B7:B22)","v":814},244,234,142,0,194]

{"sheet":"Лист3","index":12,"n_rows":22,"n_cols":3,"rows_kept":22,"merged":[[3,1,4,1],[3,2,4,2]]}
[null,null,"Информация о мероприятиях по продвижению ВФСК в общеобразовательных организациях"]
[null,null," _________ муниципального района"]
[]
["Количество школ, в которых проведены мероприятия ","Перечень основных мероприятий ","Количество обучающихся, принявших участие в мероприятиях"]
["(в течение месяца)"]
["Большекайбицкая сош"]
["Чутеевская сош"]
["Старотябердинская сош"]
["Молькеевская ош"]
["Хозесановская сош"]
["Большеподберезинская сош"]
["Надеждинская сош"]
["Ульянковская ош"]
["Старочечкабская ош"]
["Берлибашская ош"]
["Кушманская ош"]
["Муралинская ош"]
["Федоровская сош"]
["Бурундуковская ош"]
["Маломеминская ош"]
["Большерусаковская сош"]
["Кулангинская ош"]